Cogmind - Beta 16.1 @@@ ROGUE MODE // 2026.04.07 @ 14:05:21 Player: FALKE Result: Destroyed by G-34 Mercenary with Small Laser Performance ------------- Evolutions (1) 500 Regions Visited (2) 400 Robots Destroyed (31) 155 Value Destroyed (834) 834 Prototype IDs (0) 0 Alien Tech Used (0) 0 Bonus (0) 0 TOTAL SCORE: 1889 Bonus ------- None Cogmind --------- Core Integrity 0/400 Matter 300/300 Energy 100/100 System Corruption 0% Temperature Cool (6) Movement Treading (480) Ox4 Location -9/Materials Parts ------- > --- POWER (1) -------- (None) > --- PROPULSION (4) --- Light Treads > --- UTILITY (2) ------ Huge Storage Unit Signal Interpreter > --- WEAPON (2) ------- Katana > --- INVENTORY (25) --- Light Ion Engine Medium Battery (150) High-capacity Matter Pod (200) High-capacity Matter Pod (200) Machine Analyzer Visual Processing Unit Sensor Array Sensor Array Signal Interpreter Core Shielding EM Pulse Gun EM Pulse Gun EM Pulse Gun EM Pulse Gun Small Laser Small Laser Small Laser Light Assault Rifle Light Assault Rifle Autogun Light Cannon Peak State ------------ > --- POWER ------------ Ion Engine > --- PROPULSION ------- Light Treads Light Treads Light Treads Light Treads > --- UTILITY ---------- Huge Storage Unit Signal Interpreter > --- WEAPON ----------- Light Assault Rifle Katana > --- INVENTORY -------- Light Ion Engine Medium Battery High-capacity Matter Pod High-capacity Matter Pod Machine Analyzer Visual Processing Unit Sensor Array Sensor Array Signal Interpreter Core Shielding EM Pulse Gun EM Pulse Gun EM Pulse Gun EM Pulse Gun Small Laser Small Laser Small Laser Light Assault Rifle Light Cannon [Rating: 13] Favorites ----------- Power Ion Engine Engine Ion Engine Propulsion Light Treads Treads Light Treads Leg Aluminum Leg Utility Signal Interpreter Device Heat Sink Storage Huge Storage Unit Processor Signal Interpreter Protection Propulsion Shielding Weapon Light Assault Rifle Energy Gun Small Laser Ballistic Gun Light Assault Rifle Ballistic Cannon Light Cannon Slashing Weapon Katana Build | -11 -10 -9 ------- Run | Yrd Mat Mat Slots Evolved 2 | . . 2 Power . | . . . Propulsion 2 | . . 2 Utility . | . . . Weapon . | . . . Parts Attached 26 | 8 10 8 Power 4 | 1 2 1 Engine 4 | 1 2 1 Core . | . . . Reactor . | . . . Propulsion 10 | 4 2 4 Treads 8 | 2 2 4 Leg 2 | 2 . . Wheel . | . . . Hover . | . . . Flight . | . . . Utility 6 | 1 5 . Device 1 | . 1 . Storage 3 | 1 2 . Processor 1 | . 1 . Hackware . | . . . Protection 1 | . 1 . Artifact . | . . . Weapon 6 | 2 1 3 Energy Gun 1 | 1 . . Energy Cannon . | . . . Ballistic Gun 3 | 1 . 2 Ballistic Cannon 1 | . 1 . Launcher . | . . . Special Weapon . | . . . Impact Weapon . | . . . Slashing Weapon 1 | . . 1 Piercing Weapon . | . . . Special Melee Weapon . | . . . Unidentified Prototypes . | . . . Parts Lost 6 | . . 6 Power . | . . . Propulsion 4 | . . 4 Utility . | . . . Weapon 2 | . . 2 Highest Loss Streak 3 | . . 3 To Critical Strikes . | . . . Average Backups 15 | 3 13 19 Power 1 | 1 1 1 Propulsion 1 | 1 2 . Utility 4 | . 3 7 Weapon 7 | . 6 10 Tool/Special . | . . . Unused Backups 20 | . 1 19 Power 2 | . 1 1 Propulsion . | . . . Utility 9 | . . 9 Weapon 9 | . . 9 Tool/Special . | . . . Average Slot Usage (%) 93 | . 99 86 Engine 11 | . 14 7 Treads 32 | . 28 37 Storage 12 | . 14 11 Processor 10 | . 10 11 Ballistic Gun 12 | . 14 11 Ballistic Cannon 7 | . 12 1 Slashing Weapon 2 | . . 5 Peak Build Rating 13 | 6 9 13 Average Rating 8 | 5 7 10 On Entrance 5 | . 6 9 Avg Prop Armor Cover (%) . | . . . Naked Turns . | . . . Heaviest Build 89 | 12 89 89 Greatest Support 80 | 40 40 80 Greatest Overweight (x) 4 | . 2 4 Average Overweight (x) . | . . 1 Largest Inventory Capacity 25 | 8 25 25 Average Capacity 20 | 7 17 25 Most Carried 23 | 5 20 23 Average Carried 15 | 3 13 19 Final Capacity 25 | 8 25 25 Final Carried 21 | 5 20 21 Class Distribution -------------------- 73% | Mutant 26% | Scavenger-Mutant Dominant Class ---------------- Mutant | -10/Materials Scavenger-Mutant | -9/Materials Resources | -11 -10 -9 ----------- Run | Yrd Mat Mat Matter Collected 1156 | 287 217 652 Remotely . | . . . Salvage Created 1246 | 139 280 827 Parts 75 | 8 19 48 Haulers Intercepted 1 | . 1 . Recyclers Shooed . | . . . Parts Field Recycled . | . . . Retrieved Matter . | . . . Parts Self-Destructed . | . . . Prevented . | . . . Parts Restored . | . . . Kills | -11 -10 -9 ------- Run | Yrd Mat Mat Combat Hostiles Destroyed 22 | . 8 14 Melee 4 | . . 4 Guns 11 | . 3 8 Cannons 7 | . 5 2 Classes Destroyed 9 | 2 4 3 Worker 1 | . 1 . Tunneler 2 | 2 . . Hauler 1 | . 1 . Recycler 3 | 1 . 2 Watcher 2 | . . 2 Swarmer 3 | . 3 . Grunt 13 | . 5 8 Duelist 1 | . . 1 Sentry 5 | . . 5 Best Kill Streak 4 | 2 3 4 Combat Bots Only 3 | . 3 3 Max Kills in Single Turn 1 | 1 1 1 Gunslinging . | . . . Exploded . | . . . Melee 1 | . . 1 Uniques/NPCs Destroyed . | . . . Combat | -11 -10 -9 -------- Run | Yrd Mat Mat Hostile Shots Fired 249 | . 56 193 Missed 69 | . 14 55 Hits 180 | . 42 138 Melee 5 | . . 5 Projectile 175 | . 42 133 Critical Strikes 2 | . . 2 Damage Taken 2244 | . 416 1828 Core 459 | . 58 401 Absorbed by Shields . | . . . Redirected to Shielding 18 | . 18 . Regen/Repaired (Parts) 245 | . . 245 Core Remaining (%) 88 | 100 76 . Volleys Fired 77 | 7 26 44 Largest 2 | 2 2 2 Hottest 60 | 60 60 50 Shots Fired 153 | 14 52 87 Gun 127 | 14 34 79 Cannon 26 | . 18 8 Launcher . | . . . Special . | . . . Kinetic 138 | 7 44 87 Thermal 15 | 7 8 . Explosive . | . . . Electromagnetic . | . . . Robot Hit Streak 13 | 8 7 13 Robot Miss Streak 2 | 1 2 2 Penetration Max . | . . . Secondary Targets . | . . . Shots Hit Robots 109 | 10 26 73 Core Hits 45 | 5 12 28 Critical Kills . | . . . Critical Parts Destroyed 2 | 1 . 1 Critical Strikes 4 | 1 1 2 Destroy 2 | 1 . 1 Blast 1 | . 1 . Sever 1 | . . 1 Melee Attacks 10 | . . 10 Impact . | . . . Slashing 10 | . . 10 Piercing . | . . . Sneak Attacks . | . . . Combat Hostiles . | . . . Follow-up Attacks . | . . . Damage Inflicted 1488 | 100 350 1038 Guns 893 | 100 113 680 Cannons 327 | . 237 90 Explosions . | . . . Melee 268 | . . 268 Ramming . | . . . Kinetic 1111 | 22 319 770 Thermal 109 | 78 31 . Explosive . | . . . Electromagnetic . | . . . Impact . | . . . Slashing 268 | . . 268 Piercing . | . . . Highest Corruption . | . . . Average Corruption . | . . . Corruption Purged . | . . . Corruption Blocked . | . . . Overload Shots . | . . . Overflow Damage . | . . . Projectiles . | . . . Explosions . | . . . Melee . | . . . Knockbacks 5 | . 4 1 Impact . | . . . Kinetic 5 | . 4 1 Secondary . | . . . Self-Inflicted Damage . | . . . Shots . | . . . Rammed . | . . . Targets Rammed . | . . . Kicked . | . . . Crushed . | . . . Highest Temperature 40 | 20 40 13 Average Temperature 11 | 14 15 5 Received Heat Transfer 945 | . 165 780 Siege Activations . | . . . Martial Activations . | . . . Shielding Activations . | . . . Robots Disrupted . | . . . Combat Hostiles . | . . . Robots Corrupted . | . . . Combat Hostiles . | . . . Parts Fried . | . . . Impact Corruptions . | . . . Robots Melted . | . . . Combat Hostiles . | . . . Parts Melted . | . . . Heat Transferred 250 | 175 75 . Parts Sabotaged . | . . . Parts Stolen . | . . . Parts Stripped . | . . . Power Chain Reactions . | . . . Alert | -11 -10 -9 ------- Run | Yrd Mat Mat Maximum Alert Level . | . . . Low Security (%) 100 | 100 100 100 Level 1 . | . . . Level 2 . | . . . Level 3 . | . . . Level 4 . | . . . Level 5 . | . . . High Security . | . . . Max Security . | . . . Peak Influence 125 | 5 80 125 Initial . | . . . Average 33 | . 14 61 Influence Increases 689 | 15 236 438 Destroy 0b10 Robot/C 440 | . 160 280 Destroy 0b10 Robot/NC 45 | 15 10 20 Destroy Leader 136 | . 32 104 Successful Hack 22 | . 19 3 Disable Machine 15 | . 15 . Destroy Structure 1 | . . 1 Lose Combat Pursuer 30 | . . 30 Influence Decreases 635 | 15 236 384 Time Decay 599 | 15 236 348 Lost Part 36 | . . 36 Squads Dispatched 6 | . 3 3 Investigation 4 | . 2 2 Extermination . | . . . Reinforcement 2 | . 1 1 Assault . | . . . Garrison . | . . . Intercept . | . . . Searches Triggered . | . . . Construction Impeded . | . . . Haulers Reinforced . | . . . Active Scanning Responses . | . . . Cargo Convoy Interrupts . | . . . Stealth | -11 -10 -9 --------- Run | Yrd Mat Mat Distress Signals 4 | . . 4 Communications Jammed . | . . . Distress Signals . | . . . Times Spotted 38 | . 13 25 Peak Tracking Total 5 | . 3 5 Tactical Retreats 2 | . . 2 Traps | -11 -10 -9 ------- Run | Yrd Mat Mat Traps Triggered 3 | . 2 1 Indirectly . | . . . Trap Hack Attempts . | . . . Triggered . | . . . Disarmed . | . . . Reprogrammed . | . . . Reused . | . . . Traps Extracted . | . . . Installed . | . . . Triggered . | . . . Machines | -11 -10 -9 ---------- Run | Yrd Mat Mat Machines Disabled 1 | . 1 . Max in Single Turn 1 | . 1 . Machines Repaired . | . . . Machines Dismantled . | . . . Machines Sabotaged . | . . . Overloaded Fab Kills . | . . . Hacking | -11 -10 -9 --------- Run | Yrd Mat Mat Machines Accessed 4 | . 3 1 Terminals 1 | . 1 . Fabricators . | . . . Repair Stations 1 | . . 1 Recycling Units 2 | . 2 . Scanalyzers . | . . . Garrison Access . | . . . Total Hacks 23 | . 7 16 Successful 19 | . 6 13 Failed 4 | . 1 3 Catastrophic . | . . . Database Lockouts . | . . . Manual . | . . . Terminals 4 | . 4 . Fabricators . | . . . Repair Stations 16 | . . 16 Recycling Units 3 | . 3 . Scanalyzers . | . . . Garrison Access . | . . . Terminal Hacks 3 | . 3 . Surveillance Status 1 | . 1 . Patrol Status 1 | . 1 . Zone Layout 1 | . 1 . Fabricator Hacks . | . . . Repair Station Hacks 13 | . . 13 Scan Component 7 | . . 7 Repair 6 | . . 6 Recycling Unit Hacks 3 | . 3 . Report Inventory 2 | . 2 . Retrieve Components 1 | . 1 . Scanalyzer . | . . . Garrison Access Hacks . | . . . Unauthorized Hacks . | . . . Terminals . | . . . Fabricators . | . . . Repair Stations . | . . . Recycling Units . | . . . Scanalyzers . | . . . Garrison Access . | . . . Data Cores Recovered . | . . . Used . | . . . Hacking Detections 2 | . 1 1 Full Trace Events 1 | . . 1 Feedback Events . | . . . Feedback Blocked . | . . . Robot Schematics Acquired . | . . . Robots Built . | . . . Authchips . | . . . Time . | . . . Total Robot Build Rating . | . . . Part Schematics Acquired . | . . . Parts Built . | . . . Authchips . | . . . Time . | . . . Total Part Build Rating . | . . . Part Studies Acquired . | . . . Parts Repaired 6 | . . 6 Time 156 | . . 156 Parts Recycled . | . . . Recycled Matter . | . . . Retrieved Matter . | . . . Retrieved Components 2 | . 2 . Parts Scanalyzed . | . . . Part Schematics Acquired . | . . . Parts Damaged . | . . . Bothacking | -11 -10 -9 ------------ Run | Yrd Mat Mat Used RIF Installer . | . . . Robots Hacked . | . . . Non-combat . | . . . Combat . | . . . Robot Hacks Applied . | . . . Relay Couplers Released . | . . . Fabnet Peak Effective % . | . . . Robots Rewired . | . . . Allies Hacked . | . . . Hacks Repelled . | . . . Allies | -11 -10 -9 -------- Run | Yrd Mat Mat Total Allies . | . . . Largest Group . | . . . Highest-Rated Group . | . . . Highest-Rated Ally . | . . . Total Orders . | . . . Ally Attacks . | . . . Total Damage . | . . . Kills . | . . . Allies Corrupted . | . . . Allies Melted . | . . . Intel | -11 -10 -9 ------- Run | Yrd Mat Mat Active Infowar (turns) . | . . . Robot Analysis Total . | . . . Derelict Logs Recovered . | . . . Drone Launches . | . . . Drone Recoveries . | . . . Exploration | -11 -10 -9 ------------- Run | Yrd Mat Mat Turns Passed 2318 | 148 1201 969 Spaces Moved 737 | 81 424 232 Core 12 | 12 . . Treads 709 | 53 424 232 Legs 16 | 16 . . Wheels . | . . . Hover . | . . . Flight . | . . . Fastest Speed 50 | 50 160 240 Average Speed 228 | 135 236 246 Slowest Speed 480 | 160 320 480 Overloaded Moves . | . . . Propulsion Burnouts . | . . . Robots Hopped . | . . . Potential Cave-ins . | . . . Cave-ins Triggered . | . . . Exploration Rate (%) 23 | 5 48 16 Regions Visited 2 Branch Regions . Pre-discovered Areas . | . . . Known Exits Taken 1 | . 1 . Unknown Exits Taken 1 | 1 . . Scrap Searched . | . . . Spaces Dug . | . . . Terrain Destroyed . | . . . Melee . | . . . Projectile . | . . . AOE . | . . . Terrain Rammed . | . . . Walls Destroyed . | . . . Machines Disabled . | . . . Actions | -11 -10 -9 --------- Run | Yrd Mat Mat Total 1225 | 106 581 538 Wait 307 | . 87 220 Move 735 | 80 423 232 Hop . | . . . Pick Up 50 | 11 24 15 Fast Attach 1 | . 1 . Attach 14 | 6 1 7 Detach . | . . . Swap 15 | 2 8 5 Drop 16 | . 11 5 Fire 77 | 7 26 44 Melee 10 | . . 10 Ram . | . . . Kick . | . . . Crush . | . . . Escape Stasis . | . . . Rewire . | . . . Trap . | . . . Miscellaneous . | . . . Route ------- -11/Scrapyard -10/Materials (discovered 3 exits: *Mat x2 / [*Min]) -9/Materials History --------- Turn | Location | Event 6 | -11/Scrapyard | Discovered new exit (range 16) 149 | -11/Scrapyard | Entered Materials 318 | -10/Materials | Build established: Mutant 348 | -10/Materials | Discovered new exit (range 14) 596 | -10/Materials | Identified exit to Materials 1002 | -10/Materials | Discovered exit to Materials (range 8) 1305 | -10/Materials | Discovered new exit (range 16) 1350 | -10/Materials | Entered another Materials area 1350 | -9/Materials | Evolved 2 slots: Propulsion x2 1802 | -9/Materials | Build established: Scavenger-Mutant 2017 | -9/Materials | Repaired Lgt. Treads 2017 | -9/Materials | Repaired Lgt. Treads 2017 | -9/Materials | Repaired Ion Engine 2043 | -9/Materials | Repaired Lgt. Assault Rifle 2081 | -9/Materials | Repaired Lgt. Treads 2108 | -9/Materials | Repaired Lgt. Treads 2280 | -9/Materials | Core integrity fell below 50% 2303 | -9/Materials | Core integrity fell below 20% 2317 | -9/Materials | Lost 3 parts (3n) 2319 | -9/Materials | Destroyed by G-34 Mercenary with Small Laser Last Messages --------------- Time: 26 >>Repair Repairing Lgt. Treads... ETC: 26 02108_ Repair station completes Lgt. Treads repairs. 02114_ Acquired Lgt. Treads. 02193_ Connecting with Repair Station... >>Scan(Lgt. Treads) Scanning Lgt. Treads... Ready to Repair: Lgt. Treads Rating: 1 Time: 26 02193_ ALERT: Suspicious activity at Repair Station M002. Dispatching Investigation squad. 02258_ Y-45 Defender Lgt. Treads severed. 02271_ Lgt. Treads destroyed. 02290_ Y-45 Defender destroyed. 02293_ G-34 Mercenary destroyed. 02300_ Acquired 5 matter. Map ----- +----------------------------------------------------+ | ## + " #??????????? | | + # #??????????? | | # # ########??????????? | | # #######?????????????????? | | # #???????????????????????? | | ##########???????????????????????? | | ! ######???????????????????????????? | | %! # #???????????????????????????? | | *==| # #??????? #??????????????????? | | [*= + ####### #######?????????????? | | * ##### +%]*! + ?????????? | | [!#???#= !#!=[ #?????????????? | | !*#???# = #! #?????????????? | | =*#???# #*= #?????????????? | | ==#???###### ########### #?????????????? | | #????????# #?????????????????????????? | | #????????# #?????????????????????????? | | #????????# #?????????????????????????? | | #????????# #######???????????????????? | | #????????+ ? #???????????????????? | | #????????# ?? #???????????????????? | | #????????## ??# +???????????????????? | | #?????????? ??# #???????????????????? | | #?????????? ?## ##???######?????????? | | #??????????+?# ##### #?????????? | | #????????????# u=% @ g #?????????? | | #????????????# %!!g T #?????????? | | "%#????????????# ##### #?????????? | | * #????????????######???## ##?????????? | | #????????############### #??????????? | | !=########## # ##########?? | | ![% %== + # # #?? | | #######!#### # # """ #?? | | ??????#[#??# # # "R" #?? | | ??????# #??# # # " " #?? | | ??????# #??# + + * #?? | | ??????# #??############### # """ #?? | | ?????? ?????????????? # """ #?? | | ?????? ?????????????####### """ #?? | | ?????? ???????????????????# #?? | | ??????##+???????????????????##########?? | | ???????????????????????????????????????? | | ???????????????????????????????????????? | | ???????????????????????????????????????? | | ???????????????????????????????????????? | | ???????????????????????????????????????? | | ???????????????????????????????????????? | | ???????????????????????????????????????? | | ???????????????????????????????????????? | | ???????????????????????????????????????? | +----------------------------------------------------+ Best States ------------- Heat Dissipation 35 Energy Generation 10 Energy Capacity 250 Matter Stores 300 Matter Capacity 300 Sight Range 16 Terrain Scan Density 10 Propulsion Shielding 33 Evasion (%) 50 Recoil Reduction 4 Item Schematics ----------------- None Robot Schematics ------------------ None Fabricated ------------ Nothing Repaired ---------- Lgt. Assault Rifle | 25% | -9/Materials Lgt. Treads | 23% | -9/Materials Lgt. Treads | 44% | -9/Materials Studied --------- None Alien Tech Used ----------------- None Achievements -------------- None Challenges ------------ None Game ------ Seed AlphaGrenadeMindspike Manual? 0 Play Time 00:25:25 Cumulative 10.5 hours Start 2026.04.07 @ 13:35:44 End 2026.04.07 @ 14:05:21 Sessions 1 Manual Loads 0 Difficulty Rogue Special Mode None Game No. 19 Rogue 16 Adventurer 3 Explorer 0 Win Type - Total 0 Types 0/0/0/0/0/0/0/0/0/0 Lore% 13 Gallery% 13 Achievement% 13 Wizard Run 0 Options --------- Layout 0 ASCII 0 Keyboard 0 Movement Mouse Keybinds 0 Fullscreen 1 Font 24/Terminus Map View 76x50 Zoom Use 72% Tactical HUD 1 Map Filters NONE Filters NONE Steam 1 RUN: 6b7ff1f9-3b94-43fa-95ea-5bf8857716a4